Cogmind - Beta 14 @@@ ROGUE MODE // 2024.08.18 @ 12:55:57 Player: Kaeinara Result: Destroyed by G-47 Trooper with Backup Laser III Performance ------------- Evolutions (3) 1500 Regions Visited (5) 1000 Robots Destroyed (75) 375 Value Destroyed (2357) 2357 Prototype IDs (4) 80 Alien Tech Used (0) 0 Bonus (62) 62 TOTAL SCORE: 5374 Bonus ------- Follower Combat Kills 82 Friendly Fire -20 Cogmind --------- Core Integrity 0/700 Matter 155/300 Energy 300/300 System Corruption 0% Temperature Cool (9) Movement Core (350) Ox6 Location -7/Factory Parts ------- > --- POWER (2) -------- (None) > --- PROPULSION (4) --- (None) > --- UTILITY (3) ------ Large Storage Unit Compact Battery Advanced Targeting Computer > --- WEAPON (4) ------- (None) > --- INVENTORY (15) --- Heavy Ion Engine Aluminum Leg Hardlight Generator Shield Generator Particle Gun Improved Datajack Peak State ------------ > --- POWER ------------ Deuterium Engine Deuterium Engine > --- PROPULSION ------- Aluminum Leg Aluminum Leg Carbon-fiber Leg VSS Leg > --- UTILITY ---------- Large Storage Unit Compact Battery Advanced Targeting Computer > --- WEAPON ----------- Field Laser Ion Cannon Autogun Improved Datajack > --- INVENTORY -------- Heavy Ion Engine Aluminum Leg Hardlight Generator Shield Generator Particle Gun Particle Gun [Rating: 33] Favorites ----------- Power Heavy Ion Engine Engine Heavy Ion Engine Propulsion Aluminum Leg Leg Aluminum Leg Utility Large Storage Unit Device Cooling System Storage Large Storage Unit Processor Advanced Targeting Computer Protection Power Shielding Weapon Particle Cannon Energy Gun Shock Rifle Energy Cannon Particle Cannon Ballistic Gun Assault Rifle Special Melee Weapon Improved Datajack Build | -11 -10 -9 -9 -8 -7 ------- Run | Yrd Mat Mat Min Mat Fac Slots Evolved 6 | . . 2 . 2 2 Power 1 | . . . . . 1 Propulsion 2 | . . 2 . . . Utility 1 | . . . . 1 . Weapon 2 | . . . . 1 1 Parts Attached 68 | 6 19 11 5 18 9 Power 7 | 1 2 2 . 1 1 Engine 7 | 1 2 2 . 1 1 Core . | . . . . . . Reactor . | . . . . . . Propulsion 27 | 2 4 7 5 7 2 Treads . | . . . . . . Leg 27 | 2 4 7 5 7 2 Wheel . | . . . . . . Hover . | . . . . . . Flight . | . . . . . . Utility 12 | 1 7 . . 3 1 Device 3 | . 2 . . 1 . Storage 6 | 1 4 . . . 1 Processor 2 | . . . . 2 . Hackware . | . . . . . . Protection 1 | . 1 . . . . Artifact . | . . . . . . Weapon 22 | 2 6 2 . 7 5 Energy Gun 5 | . . . . 3 2 Energy Cannon 12 | . 6 2 . 4 . Ballistic Gun 4 | 2 . . . . 2 Ballistic Cannon . | . . . . . . Launcher . | . . . . . . Special Weapon . | . . . . . . Impact Weapon . | . . . . . . Slashing Weapon . | . . . . . . Piercing Weapon . | . . . . . . Special Melee Weapon 1 | . . . . . 1 Unidentified Prototypes . | . . . . . . Parts Lost 24 | . 2 . . 9 13 Power 2 | . . . . . 2 Propulsion 8 | . . . . 3 5 Utility 2 | . . . . 1 1 Weapon 12 | . 2 . . 5 5 Highest Loss Streak 13 | . 2 . . 3 13 To Critical Strikes 1 | . . . . . 1 Average Slot Usage (%) 98 | . 98 100 100 99 88 Engine 11 | . 13 11 11 9 13 Leg 35 | . 28 44 44 35 24 Device 9 | . 10 11 11 8 4 Storage 11 | . 15 11 11 9 8 Processor 2 | . . . . 9 7 Energy Gun 1 | . . . . 3 12 Energy Cannon 22 | . 22 22 22 23 6 Ballistic Gun 1 | . 4 . . . 6 Peak Build Rating 33 | 6 11 16 16 28 33 Average Rating 15 | 4 9 14 16 22 28 On Entrance 12 | . 6 11 16 16 27 Naked Turns . | . . . . . . Heaviest Build 54 | 14 35 40 38 44 54 Greatest Support 52 | 20 20 40 40 52 47 Greatest Overweight (x) 1 | 1 1 . . 1 1 Average Overweight (x) . | . . . . . 1 Largest Inventory Capacity 25 | 8 25 15 15 15 15 Average Capacity 14 | 7 14 15 15 15 15 Most Carried 15 | 7 15 15 15 15 11 Average Carried 12 | 2 11 14 14 13 9 Final Capacity 15 | 8 15 15 15 15 15 Final Carried 15 | 2 13 15 15 12 6 Class Distribution -------------------- 68% | Mutant 24% | Gunner 7% | Scavenger-Gunner Dominant Class ---------------- Mutant | -10/Materials Mutant | -9/Materials Mutant | -9/Mines Gunner | -8/Materials Gunner | -7/Factory Resources | -11 -10 -9 -9 -8 -7 ----------- Run | Yrd Mat Mat Min Mat Fac Matter Collected 889 | 191 356 133 67 142 . Remotely . | . . . . . . Salvage Created 2986 | . 685 729 475 989 108 Parts 154 | . 38 51 24 38 3 Haulers Intercepted . | . . . . . . Recyclers Shooed 1 | . . . . 1 . Parts Field Recycled . | . . . . . . Retrieved Matter . | . . . . . . Parts Self-Destructed . | . . . . . . Prevented . | . . . . . . Kills | -11 -10 -9 -9 -8 -7 ------- Run | Yrd Mat Mat Min Mat Fac Combat Hostiles Destroyed 72 | . 14 16 19 21 2 Guns 3 | . 2 . . . 1 Cannons 62 | . 12 15 18 17 . Classes Destroyed 10 | . 4 3 2 1 . Worker 2 | . . . 2 . . Tunneler 1 | . . 1 . . . Recycler 1 | . 1 . . . . Watcher 6 | . 3 2 . 1 . Swarmer 16 | . 3 3 6 4 . Grunt 35 | . 11 8 4 10 2 Brawler 3 | . . 2 1 . . Sentry 9 | . . 3 1 5 . Hunter 2 | . . . . 2 . Assembled 7 | . . . 7 . . Best Kill Streak 10 | . 7 10 5 4 2 Combat Bots Only 10 | . 6 10 5 4 2 Max Kills in Single Turn 2 | . 1 2 2 1 1 Gunslinging . | . . . . . . Exploded . | . . . . . . Melee . | . . . . . . Uniques/NPCs Destroyed . | . . . . . . Combat | -11 -10 -9 -9 -8 -7 -------- Run | Yrd Mat Mat Min Mat Fac Hostile Shots Fired 379 | . 91 35 82 67 104 Missed 98 | . 32 14 24 20 8 Damage Taken 3978 | . 703 237 548 837 1653 Core 1071 | . 105 11 76 168 711 Absorbed by Shields . | . . . . . . Redirected to Shielding 8 | . 8 . . . . Core Remaining (%) 76 | 100 58 . 78 69 . Volleys Fired 190 | . 56 33 36 47 18 Largest 4 | . 2 2 2 3 4 Hottest 204 | . 136 136 136 204 196 Shots Fired 433 | . 110 66 72 136 49 Gun 88 | . 45 . . 7 36 Cannon 345 | . 65 66 72 129 13 Launcher . | . . . . . . Special . | . . . . . . Kinetic 56 | . 45 . . . 11 Thermal 362 | . 65 66 72 129 30 Explosive . | . . . . . . Electromagnetic 15 | . . . . 7 8 Robot Hit Streak 14 | . 13 14 8 14 4 Robot Miss Streak 7 | . 5 3 4 2 7 Penetration Max . | . . . . . . Secondary Targets . | . . . . . . Shots Hit Robots 248 | . 61 36 37 94 20 Core Hits 102 | . 24 19 21 33 5 Critical Kills 5 | . . 1 1 2 1 Critical Parts Destroyed 2 | . 2 . . . . Critical Strikes 8 | . 2 1 1 2 2 Burn 1 | . . . . . 1 Meltdown 5 | . . 1 1 2 1 Destroy 2 | . 2 . . . . Melee Attacks 1 | . . . . . 1 Impact . | . . . . . . Slashing . | . . . . . . Piercing . | . . . . . . Sneak Attacks . | . . . . . . Combat Hostiles . | . . . . . . Follow-up Attacks . | . . . . . . Damage Inflicted 5105 | . 1051 864 820 2039 331 Guns 701 | . 332 . . 106 263 Cannons 4404 | . 719 864 820 1933 68 Explosions . | . . . . . . Melee . | . . . . . . Ramming . | . . . . . . Kinetic 389 | . 332 . . . 57 Thermal 4536 | . 719 864 820 1933 200 Explosive . | . . . . . . Electromagnetic 180 | . . . . 106 74 Impact . | . . . . . . Slashing . | . . . . . . Piercing . | . . . . . . Highest Corruption 3 | . . . . 3 . Average Corruption 2 | . . . . 2 . Corruption Purged . | . . . . . . Corruption Blocked . | . . . . . . Effects 14 | . . . . 14 . Message Errors 1 | . . . . 1 . Matter Fused 2 | . . . . 2 . Heat Flow Errors 2 | . . . . 2 . Energy Discharges 2 | . . . . 2 . Data Loss (minor) 5 | . . . . 5 . Misfires 1 | . . . . 1 . Alerts 1 | . . . . 1 . Overload Shots . | . . . . . . Overflow Damage 58 | . . 13 15 30 . Projectiles 58 | . . 13 15 30 . Explosions . | . . . . . . Melee . | . . . . . . Knockbacks . | . . . . . . Impact . | . . . . . . Kinetic . | . . . . . . Secondary . | . . . . . . Self-Inflicted Damage . | . . . . . . Shots . | . . . . . . Rammed . | . . . . . . Targets Rammed . | . . . . . . Kicked . | . . . . . . Crushed . | . . . . . . Highest Temperature 1015 | . 316 75 63 508 1015 Average Temperature 138 | . 53 20 11 135 574 Received Heat Transfer 986 | . 399 75 98 189 225 Effects 58 | . 1 . . 7 50 Shutdowns 15 | . . . . 1 14 Energy Bleed 9 | . . . . 1 8 Interference 9 | . . . . . 9 Matter Decay 3 | . 1 . . . 2 Short Circuit 8 | . . . . 1 7 Damage (minor) 6 | . . . . 2 4 Damage (major) 6 | . . . . 2 4 Damage (core) 2 | . . . . . 2 Siege Activations . | . . . . . . Robots Corrupted . | . . . . . . Combat Hostiles . | . . . . . . Parts Fried . | . . . . . . Impact Corruptions . | . . . . . . Robots Melted 7 | . . 1 1 4 1 Combat Hostiles 7 | . . 1 1 4 1 Parts Melted 18 | . 1 2 4 11 . Heat Transferred 8251 | . 1332 1554 1480 3404 481 Parts Sabotaged . | . . . . . . Parts Stolen . | . . . . . . Parts Stripped . | . . . . . . Power Chain Reactions . | . . . . . . Alert | -11 -10 -9 -9 -8 -7 ------- Run | Yrd Mat Mat Min Mat Fac Peak Influence 396 | . 190 396 393 341 131 Initial 134 | . . 39 123 134 90 Average 178 | . 86 209 300 224 93 Maximum Alert Level 1 | . . 1 1 1 . Low Security (%) 58 | 100 100 35 9 41 100 Level 1 41 | . . 64 90 58 . Level 2 . | . . . . . . Level 3 . | . . . . . . Level 4 . | . . . . . . Level 5 . | . . . . . . High Security . | . . . . . . Max Security . | . . . . . . Squads Dispatched 7 | . 3 1 . 3 . Investigation 2 | . 1 . . 1 . Extermination . | . . . . . . Reinforcement 5 | . 2 1 . 2 . Assault . | . . . . . . Garrison . | . . . . . . Intercept . | . . . . . . Searches Triggered . | . . . . . . Construction Impeded . | . . . . . . Haulers Reinforced . | . . . . . . Active Scanning Responses . | . . . . . . Cargo Convoy Interrupts . | . . . . . . Stealth | -11 -10 -9 -9 -8 -7 --------- Run | Yrd Mat Mat Min Mat Fac Distress Signals 1 | . . 1 . . . Communications Jammed . | . . . . . . Distress Signals . | . . . . . . Times Spotted 105 | . 25 22 24 27 7 Peak Tracking Total 6 | . 3 6 4 4 4 Tactical Retreats 5 | . 2 . 1 1 1 Traps | -11 -10 -9 -9 -8 -7 ------- Run | Yrd Mat Mat Min Mat Fac Traps Triggered 6 | . 3 . . 3 . Indirectly . | . . . . . . Trap Hack Attempts . | . . . . . . Triggered . | . . . . . . Disarmed . | . . . . . . Reprogrammed . | . . . . . . Reused . | . . . . . . Traps Extracted . | . . . . . . Installed . | . . . . . . Triggered . | . . . . . . Machines | -11 -10 -9 -9 -8 -7 ---------- Run | Yrd Mat Mat Min Mat Fac Machines Disabled 6 | . 1 . 3 1 1 Max in Single Turn 1 | . 1 . 1 1 1 Machines Repaired . | . . . . . . Machines Dismantled . | . . . . . . Machines Sabotaged . | . . . . . . Overloaded Fab Kills . | . . . . . . Hacking | -11 -10 -9 -9 -8 -7 --------- Run | Yrd Mat Mat Min Mat Fac Machines Accessed 16 | . 4 6 . 6 . Terminals 15 | . 4 6 . 5 . Fabricators . | . . . . . . Repair Stations . | . . . . . . Recycling Units . | . . . . . . Scanalyzers 1 | . . . . 1 . Garrison Access . | . . . . . . Total Hacks 41 | . 12 11 . 18 . Successful 23 | . 7 6 . 10 . Failed 18 | . 5 5 . 8 . Catastrophic 6 | . 1 1 . 4 . Database Lockouts . | . . . . . . Manual . | . . . . . . Terminals 40 | . 12 11 . 17 . Fabricators . | . . . . . . Repair Stations . | . . . . . . Recycling Units . | . . . . . . Scanalyzers 1 | . . . . 1 . Garrison Access . | . . . . . . Terminal Hacks 22 | . 7 6 . 9 . Record 3 | . 1 1 . 1 . Robot Analysis 1 | . . . . 1 . Prototype ID Bank 2 | . . 2 . . . Emergency Access Points 1 | . 1 . . . . Alert Level 4 | . 1 . . 3 . Unreport Threat 1 | . . . . 1 . Locate Traps 1 | . . . . 1 . Maintenance Status 1 | . . 1 . . . Security Status 1 | . 1 . . . . Investigation Status 1 | . 1 . . . . Reinforcement Status 2 | . . 1 . 1 . Hauler Manifests 1 | . 1 . . . . Zone Layout 3 | . 1 1 . 1 . Fabricator Hacks . | . . . . . . Repair Station Hacks . | . . . . . . Recycling Unit Hacks . | . . . . . . Scanalyzer 1 | . . . . 1 . Insert Component 1 | . . . . 1 . Garrison Access Hacks . | . . . . . . Unauthorized Hacks . | . . . . . . Terminals . | . . . . . . Fabricators . | . . . . . . Repair Stations . | . . . . . . Recycling Units . | . . . . . . Scanalyzers . | . . . . . . Garrison Access . | . . . . . . Data Cores Recovered . | . . . . . . Used . | . . . . . . Hacking Detections 10 | . 3 3 . 4 . Full Trace Events 2 | . 1 . . 1 . Feedback Events . | . . . . . . Feedback Blocked . | . . . . . . Robot Schematics Acquired . | . . . . . . Robots Built . | . . . . . . Authchips . | . . . . . . Time . | . . . . . . Total Robot Build Rating . | . . . . . . Part Schematics Acquired . | . . . . . . Parts Built . | . . . . . . Authchips . | . . . . . . Time . | . . . . . . Total Part Build Rating . | . . . . . . Parts Repaired . | . . . . . . Time . | . . . . . . Parts Recycled . | . . . . . . Recycled Matter . | . . . . . . Retrieved Matter . | . . . . . . Retrieved Components . | . . . . . . Parts Scanalyzed . | . . . . . . Part Schematics Acquired . | . . . . . . Parts Damaged . | . . . . . . Bothacking | -11 -10 -9 -9 -8 -7 ------------ Run | Yrd Mat Mat Min Mat Fac Used RIF Installer . | . . . . . . Robots Hacked 1 | . . . . . 1 Non-combat . | . . . . . . Combat 1 | . . . . . 1 Robot Hacks Applied 1 | . . . . . 1 parse_system 1 | . . . . . 1 Relay Couplers Released . | . . . . . . Fabnet Peak Effective % . | . . . . . . Robots Rewired . | . . . . . . Allies Hacked . | . . . . . . Hacks Repelled . | . . . . . . Allies | -11 -10 -9 -9 -8 -7 -------- Run | Yrd Mat Mat Min Mat Fac Total Allies 2 | . . . 2 . . Largest Group 2 | . . . 2 2 . Highest-Rated Group 42 | . . . 42 42 . Highest-Rated Ally 31 | . . . 31 31 . Total Orders . | . . . . . . Ally Attacks 17 | . . . 4 13 . Total Damage 248 | . . . 62 186 . Kills 5 | . . . 3 2 . Allies Corrupted . | . . . . . . Allies Melted . | . . . . . . Intel | -11 -10 -9 -9 -8 -7 ------- Run | Yrd Mat Mat Min Mat Fac Robot Analysis Total 1 | . . . . 1 . Derelict Logs Recovered 1 | . . . 1 . . Drone Launches . | . . . . . . Drone Recoveries . | . . . . . . Exploration | -11 -10 -9 -9 -8 -7 ------------- Run | Yrd Mat Mat Min Mat Fac Turns Passed 4348 | 77 1442 679 705 1235 210 Spaces Moved 2132 | 63 518 423 437 631 60 Core 21 | 21 . . . . . Treads . | . . . . . . Legs 2111 | 42 518 423 437 631 60 Wheels . | . . . . . . Hover . | . . . . . . Flight . | . . . . . . Fastest Speed 50 | 50 120 120 120 112 187 Average Speed 149 | 102 185 120 120 160 187 Slowest Speed 190 | 120 190 120 120 190 187 Overloaded Moves . | . . . . . . Propulsion Burnouts . | . . . . . . Robots Hopped . | . . . . . . Cave-ins Triggered . | . . . . . . Exploration Rate (%) 45 | 5 72 49 84 63 2 Regions Visited 5 Branch Regions 1 Pre-discovered Areas . | . . . . . . Known Exits Taken . | . . . . . . Unknown Exits Taken 5 | 1 1 1 1 1 . Scrap Searched 1 | . . . 1 . . Spaces Dug . | . . . . . . Terrain Destroyed . | . . . . . . Melee . | . . . . . . Projectile . | . . . . . . AOE . | . . . . . . Terrain Rammed . | . . . . . . Walls Destroyed . | . . . . . . Machines Disabled . | . . . . . . Actions | -11 -10 -9 -9 -8 -7 --------- Run | Yrd Mat Mat Min Mat Fac Total 2920 | 75 892 534 547 748 124 Wait 438 | . 271 42 60 32 33 Move 2127 | 62 517 422 436 630 60 Hop . | . . . . . . Pick Up 59 | 7 20 12 4 15 1 Fast Attach 3 | 1 2 . . . . Attach 30 | 5 5 2 . 11 7 Detach . | . . . . . . Swap 35 | . 12 9 5 7 2 Drop 37 | . 9 14 6 6 2 Fire 190 | . 56 33 36 47 18 Melee 1 | . . . . . 1 Ram . | . . . . . . Kick . | . . . . . . Crush . | . . . . . . Escape Stasis . | . . . . . . Rewire . | . . . . . . Trap . | . . . . . . Miscellaneous . | . . . . . . Route ------- -11/Scrapyard -10/Materials (discovered 2 exits: *Mat / [*Min]) -9/Materials (discovered 3 exits: *Mat / [*Min] / [*Sto]) -9/Mines (discovered 2 exits: *Mat x2) -8/Materials -7/Factory History --------- Turn | Location | Event 7 | -11/Scrapyard | Discovered new exit (range 15) 78 | -11/Scrapyard | Entered Materials 316 | -10/Materials | Build established: Mutant 1436 | -10/Materials | Discovered new exit (range 8) 1505 | -10/Materials | Discovered new exit (range 5) 1520 | -10/Materials | Entered another Materials area 1520 | -9/Materials | Evolved 2 slots: Propulsion x2 1796 | -9/Materials | Discovered new exit (range 13) 1797 | -9/Materials | Destroyed 10 combat bots 1982 | -9/Materials | Discovered new exit (range 16) 2187 | -9/Materials | Discovered new exit (range 8) 2199 | -9/Materials | Entered Mines 2262 | -9/Mines | Discovered new exit (range 8) 2300 | -9/Mines | Assembled infested the area 2613 | -9/Mines | Learned location of 1 exit from Proximity Caves 2699 | -9/Mines | Joined a pair of Derelicts in attacking an 0b10 outpost 2799 | -9/Mines | Discovered new exit (range 10) 2904 | -9/Mines | Entered Materials 2904 | -8/Materials | Accompanied by 2 allies 2904 | -8/Materials | Evolved 2 slots: Utility x1, Weapon x1 2909 | -8/Materials | Led the pair of lost Derelicts to an unsafe place 3199 | -8/Materials | Build established: Gunner 4117 | -8/Materials | Discovered new exit (range 16) 4120 | -8/Materials | Lost 3 parts (1n2w) 4139 | -8/Materials | Entered Factory 4139 | -7/Factory | Evolved 2 slots: Power x1, Weapon x1 4330 | -7/Factory | Core integrity fell below 50% 4341 | -7/Factory | Core integrity fell below 20% 4349 | -7/Factory | Destroyed by G-47 Trooper with Backup Laser III Last Messages --------------- 04316_ Autogun broken. 04316_ Overheating: Short circuit. 04317_ Overheating: Core damaged (-140). 04320_ Overheating: Particle Gun damaged (-20). 04320_ Overheating: Com. Battery damaged (-9). 04320_ Field Laser destroyed. 04321_ Overheating: System interference. 04321_ Particle Gun temporarily disabled. 04322_ Power failure, Deuterium Engine shutdown. 04322_ Deuterium Engine destroyed. 04324_ Overheating: Energy bleed (-71). 04324_ Particle Gun destroyed. 04325_ Power failure, Deuterium Engine shutdown. 04325_ M-28 Smith repairs S-27 Virus. 04325_ Broken Carbon-fiber Leg destroyed. 04328_ Overheating: Energy bleed (-33). 04329_ Broken Ion Cannon destroyed. 04331_ Deuterium Engine destroyed. 04336_ Broken Autogun destroyed. 04339_ G-47 Trooper misfires. Map ----- +----------------------------------------------------+ | ??????????????????????????????????????? | | ??????????????????????????????????????? | | ??????????????????????????????????????? | | ??????????????????????????????????????? | | ??????????????????????????????????????? | | ??????????????????????????????????????? | | ??????????????????????????????????????? | | ??????????????????????????????????????? | | ??????????????????????????????????????? | | ??????????????????????????????????????? | | ??????????????????????????????????????? | | ??????????????????????????????????????? | | ??????????????????????????????????????? | | ?????????????????????????"????????????? | | ????????????????????????? ????????????? | | ???????????????##########+####????????? | | ???????????????# ?????????? | | ???????????????# #?????????? | | ???????????????# [ #?????????? | | ???????????????# % #?????????? | | ???????????????# = #?????????? | | ???????????????# ####%###?????????? | | ???????????????# ####;##########??? | | ???????????????# # * #??? | | ????????#??????# # """ss"""""" #??? | | ????????+ ?????# # "R@[""""""" #??? | | ????????# ????# + """sg"""""" #??? | | ????????# "???# # """m""""""" #??? | | ?????????? ??# # #??? | | ??? #####+### ###############??? | | ??? #??????????????? | | ??? #??????????????? | | ??? #??????????????? | | ??? #??????????????? | | ??? #??????????????? | | ????#+############+#######????????????? | | ????????????# #????????????? | | ????????????# "" #????????????? | | ????????????# """ #????????????? | | ????????????# """ S" #????????????? | | ????????????# """ """ #????????????? | | ????????????# """ """ #????????????? | | ????????????# #????????????? | | ????????????# """ """ #????????????? | | ????????????# """ """ #????????????? | | ????????????# """ """ #????????????? | | ????????????# #????????????? | | ????????????# #????????????? | | ?????????????#############????????????? | | ??????????????????????????????????????? | +----------------------------------------------------+ Best States ------------- Heat Dissipation 53 Energy Generation 23 Energy Capacity 650 Matter Stores 300 Matter Capacity 300 Sight Range 16 Terrain Scan Density 10 Power Shielding 33 Evasion (%) 55 Targeting Accuracy 8 Item Schematics ----------------- None Robot Schematics ------------------ None Fabricated ------------ Nothing Alien Tech Used ----------------- None Achievements -------------- I Survived The Infestation Challenges ------------ None Game ------ Seed SpacefoldImprinterPlatform Manual? 0 Play Time 00:54:09 Cumulative 7.2 hours Start 2024.08.18 @ 11:10:31 End 2024.08.18 @ 12:55:57 Sessions 1 Manual Loads 0 Difficulty Rogue Special Mode None Game No. 11 Rogue 11 Adventurer 0 Explorer 0 Win Type - Total 0 Types 0/0/0/0/0/0/0/0/0 Lore% 4 Gallery% 11 Achievement% 13 Wizard Run 0 Options --------- Layout 1 ASCII 0 Keyboard 0 Movement Mouse Keybinds 0 Fullscreen 2 Font 24/Smallcaps Map View 50x35 Zoom Use 0% Tactical HUD 1 Map Filters NONE Filters NONE Steam 1 RUN: 2d408994-b6d6-4bfc-b106-24abf0c29cdd